Workbook

Sheet Intro
B9: Step 1 - Evaluate Factors Affecting Cost
C10: What are the specific factors impacting your project ?
C11: Market conditions, Site conditions, Materials and resources availability
B13: Step 2 - Using Bid History
C14: Unit bid history is how most state DOTs create the Engineer's estimate
C15: This tab will guide you though the basics of how to retrieve relevant data
B17: Step 3 - Bid Item Contribution, (80/20 rule)
C18: Typically only about 20% of the bid items in a project comprise 80% of the cost, focus your efforts here.
C19: The most value to utilizing the 80/20 rule may be realized early in the project prior to having a detailed design
C20: Note: High cost Lump Sum items should be evaluated by their composite parts
C22: LS Example Worksheet
C23: This tab guides you through breaking down and analyzing the component parts of a high cost Lump Sum item
C25: Example Paving Estimate
C26: The examples in this workbook are based on this estimate
C27: It is provided here for reference and as a template for practice analysis
B29: Tools
C30: These are tools that will help you to develop you unit bid prices

Sheet Cost Factors
B1: Cost Factors
B2: The following are some factors that affect the cost of work in projects. The cost of work may be higher or lower than average based on project specific conditions. Click on the Information button to learn more about each cost factor. | C2: Use the fields below to record information about the specific conditions for your project
B3: FACTORS AFFECTING COST | C3: PROJECT CONDITIONS
A4: Click i to View/Close | B4: PROJECT
B5: Type | C5: HMA - Paving | S5: 2 | T5: type
B6: Project Size | C6: $3M - $4M | S6: 3 | T6: projectsize
B7: Location (urban/rural) & Other Geographic Considerations | C7: rural | S7: 1 | T7: Location
B8: Major Items of work - quantity (small/large) | C8: large | S8: 4 | T8: major
B9: Haul Distance/Materials Sources | C9: 40 miles | S9: 5 | T9: haul
B10: Site Accessibility (can the equipment/people easily get in to perform the work) | C10: easy access | S10: 6 | T10: site
B11: Maintenance of Traffic ( one or many moves) | C11: minor | S11: 7 | T11: mot
B12: Difficult Site conditions | C12: no | S12: 9 | T12: conditions
B13: TIMING
B14: Multi Season Projects (multiple setup/tear-down, administrative costs) | C14: 20 working days | S14: 10 | T14: seasons
B15: Construction Season | C15: summer | S15: 11 | T15: conSeason
B16: Timing of advertisement (late season - contractors booked or early - contractors looking for work) | C16: Late winter AD | S16: 12 | T16: ad
B17: WORK and BIDDING
B18: Mobilization considerations | S18: 23 | T18: mob
B19: Restrictions (nighttime work, noise, lane closures) | C19: No restrictions | S19: 13 | T19: restrictions
B20: Bid Environment (bidding competition, amount of similar work, available qualified contractors) | C20: nominal | S20: 14 | T20: bid
B21: Specifications/Plans Clarity | C21: *** Remember to check these | S21: 15 | T21: specs
B22: Materials Availability ( what's happened in the world to affect producers of materials) | C22: Oil/Fuel/Binder prices rising | S22: 16 | T22: materials
B23: Price Volatile Materials | S23: 17 | T23: volatile
B24: Subcontracted Items | S24: 18 | T24: subbed
B25: First Time Use Items | C25: none | S25: 19 | T25: first
B26: Specialty Work | S26: 20 | T26: special
B27: COST ESCALATION | S27: A | T27: cost
B28: Project Scope & Scope Creep | S28: 21 | T28: creep
B29: Inflation | S29: 22 | T29: inflate

Sheet Cost Drivers Worksheet
B1: Cost Drivers Worksheet
B2: Cost drivers Are the various work or activities that are associated with a project. The impact of these factors are cost drivers and can be minimal or significant and should be considered when developing the cost estimate | E2: Use this sheet to keep track of items that may need further evaluation for impacts to the cost estimate
B3: Factor | C3: Is this a cost driver for the project? | D3: Does it have a major impact? | E3: Comments about cost driver impacts
B4: Project Size
B5: Location
B6: Major Items of work - quantity
B7: Haul Distance/Materials Sources
B8: Site Accessibility
B9: Maintenance of Traffic
B10: Difficult Site conditions
B11: Multi Season Project
B12: Construction Season
B13: Timing of advertisement
B14: Mobilization considerations
B15: Work Restrictions
B16: Bid Environment - competition
B17: Specifications/Plans Clarity
B18: Materials Availability
B19: Price Volatile Materials
B20: Subcontracted Items
B21: First Time Use Items
B22: Specialty Work
B24: * Add others as needed

Sheet Using Bid History Data

Sheet 80-20 Rule -- Item Analysis
B20: Section | C20: Item Number | D20: Standard Item Number | E20: Item Description | F20: QUANTITY | G20: Unit of Measure | H20: Unit Price | I20: Total
B21: Hot Mix Asphalt | C21: 9 | D21: 5766 | E21: HMA CL. 3/8 IN. PG 64H-28 | F21: 16680 | G21: TON | H21: 82 | I21: 1367760
B22: Hot Mix Asphalt | C22: 7 | D22: 5711 | E22: PLANING BITUMINOUS PAVEMENT | F22: 153400 | G22: S.Y. | H22: 2 | I22: 306800
B23: Traffic | C23: 31 | D23: 6971 | E23: PROJECT TEMPORARY TRAFFIC CONTROL | F23: 250000 | G23: L.S. | H23: 1 | I23: 265000
B24: Preparation | C24: 1 | D24: 0001 | E24: MOBILIZATION | F24: 182900 | G24: L.S. | H24: 1 | I24: 182900
B25: Hot Mix Asphalt | C25: 15 | D25: 6518 | E25: SMOOTHNESS COMPLIANCE ADJUSTMENT | F25: 124000 | G25: CALC | H25: 1 | I25: 124000
B26: Hot Mix Asphalt | C26: 11 | D26: 5835 | E26: COMPACTION PRICE ADJUSTMENT | F26: 68400 | G26: CALC | H26: 1 | I26: 68400
B27: Hot Mix Asphalt | C27: 13 | D27: NS | E27: JOINT ADHESIVE FOR BITUMINOUS PAVEMENT | F27: 53300 | G27: L.F. | H27: 1 | I27: 53300
B28: Hot Mix Asphalt | C28: 10 | D28: 5830 | E28: JOB MIX COMPLIANCE PRICE ADJUSTMENT | F28: 41100 | G28: CALC | H28: 1 | I28: 41100
B29: Hot Mix Asphalt | C29: 12 | D29: 5837 | E29: ASPHALT COST PRICE ADJUSTMENT | F29: 27700 | G29: CALC | H29: 1 | I29: 27700
B30: Other Items | C30: 44 | D30: 7038 | E30: ROADWAY SURVEYING | F30: 25000 | G30: L.S. | H30: 1 | I30: =H30*F30 -> 25000
B31: Traffic | C31: 30 | D31: 6895 | E31: TEMPORARY PAVEMENT MARKING-SHORT DURATION | F31: 163000 | G31: L.F. | H31: 0.15 | I31: =H31*F31 -> 24450
B32: Traffic | C32: 26 | D32: 6806 | E32: PAINT LINE | F32: 162891 | G32: L.F. | H32: 0.15 | I32: =H32*F32 -> 24433.65
B33: Hot Mix Asphalt | C33: 8 | D33: 5738 | E33: HMA FOR PAVEMENT REPAIR CL. 3/8 IN. PG 64H-28 | F33: 170 | G33: TON | H33: 140 | I33: 23800
B34: Traffic | C34: 41 | D34: 6982 | E34: CONSTRUCTION SIGNS CLASS A | F34: 964 | G34: S.F. | H34: 13 | I34: =H34*F34 -> 12532
B35: Hot Mix Asphalt | C35: 6 | D35: 5701 | E35: CRACK SEALING-CM | F35: 10.3 | G35: CM | H35: 1200 | I35: 12360
B36: Traffic | C36: 23 | D36: 6780 | E36: REMOVING AND RESETTING BEAM GUARDRAIL | F36: 563 | G36: L.F. | H36: 20 | I36: =H36*F36 -> 11260
B37: Traffic | C37: 25 | D37: 6832 | E37: FLEXIBLE GUIDE POST | F37: 368 | G37: EACH | H37: 30 | I37: =H37*F37 -> 11040
B38: Traffic | C38: 29 | D38: 6893 | E38: CENTERLINE RUMBLE STRIP | F38: 10.4 | G38: MI. | H38: 1000 | I38: =H38*F38 -> 10400
B39: Surfacing | C39: 4 | D39: 5020 | E39: BALLAST | F39: 270 | G39: TON | H39: 30 | I39: 8100
B40: Traffic | C40: 20 | D40: 6727 | E40: EXTRUDED CURB | F40: 395 | G40: L.F. | H40: 15 | I40: 5925
B41: Other Items | C41: 46 | D41: 7480 | E41: ROADSIDE CLEANUP | F41: 5000 | G41: EST. | H41: 1 | I41: =H41*F41 -> 5000
B42: Traffic | C42: 24 | D42: 7450 | E42: REPAIR TRANSPORTABLE ATTENUATOR | F42: 4000 | G42: EST. | H42: 1 | I42: =H42*F42 -> 4000
B43: Erosion Control | C43: 17 | D43: 6471 | E43: INLET PROTECTION | F43: 36 | G43: EACH | H43: 90 | I43: 3240
B44: Grading | C44: 3 | D44: 0332 | E44: PAVEMENT REPAIR EXCAVATION INCL. HAUL | F44: 270 | G44: S.Y. | H44: 10 | I44: 2700
B45: Other Items | C45: 47 | D45: 7490 | E45: TRIMMING AND CLEANUP | F45: 2500 | G45: L.S. | H45: 1 | I45: =H45*F45 -> 2500
B46: Erosion Control | C46: 18 | D46: 6479 | E46: WATTLE | F46: 475 | G46: L.F. | H46: 5 | I46: 2375
B47: Other Items | C47: 52 | D47: 7530 | E47: CONSTRUCTION GEOTEXTILE FOR SEPARATION | F47: 520 | G47: S.Y. | H47: 4 | I47: =H47*F47 -> 2080
B48: Erosion Control | C48: 19 | D48: 6490 | E48: EROSION/WATER POLLUTION CONTROL | F48: 2000 | G48: EST. | H48: 1 | I48: 2000
B49: Surfacing | C49: 5 | D49: 5100 | E49: CRUSHED SURFACING BASE COURSE | F49: 70 | G49: TON | H49: 25 | I49: 1750
B50: Traffic | C50: 42 | D50: 6750 | E50: BEAM GUARDRAIL POST | F50: 10 | G50: EACH | H50: 135 | I50: =H50*F50 -> 1350
B51: Traffic | C51: 21 | D51: NS | E51: REMOVING AND RESETTING GUARDRAIL BLOCKS | F51: 113 | G51: L.F. | H51: 10 | I51: 1130
B52: Preparation | C52: 2 | D52: 0185 | E52: REMOVING GUIDE POST | F52: 220 | G52: EACH | H52: 5 | I52: 1100
B53: Other Items | C53: 51 | D53: 7736 | E53: SPCC PLAN | F53: 1000 | G53: L.S. | H53: 1 | I53: =H53*F53 -> 1000
B54: Erosion Control | C54: 16 | D54: 6403 | E54: ESC LEAD | F54: 8 | G54: DAY | H54: 75 | I54: 600
B55: Traffic | C55: 22 | D55: 6755 | E55: BEAM GUARDRAIL BLOCK | F55: 15 | G55: EACH | H55: 30 | I55: 450
B56: Other Items | C56: 45 | D56: 3100 | E56: ADJUST CATCH BASIN | F56: 1 | G56: EACH | H56: 450 | I56: =H56*F56 -> 450
B57: Traffic | C57: 27 | D57: 6859 | E57: PLASTIC STOP LINE | F57: 29 | G57: L.F. | H57: 15 | I57: =H57*F57 -> 435
B58: Traffic | C58: 28 | D58: 6833 | E58: PLASTIC TRAFFIC ARROW | F58: 2 | G58: EACH | H58: 150 | I58: =H58*F58 -> 300
B59: Traffic | C59: 43 | D59: 6817 | E59: PAINTED WIDE LINE | F59: 454 | G59: L.F. | H59: 0.3 | I59: =H59*F59 -> 136.2
B60: Other Items | C60: 48 | D60: 7725 | E60: REIMBURSEMENT FOR THIRD PARTY DAMAGE | F60: 5 | G60: EST. | H60: 1 | I60: =H60*F60 -> 5
B61: Hot Mix Asphalt | C61: 14 | D61: 6516 | E61: CYCLIC DENSITY PRICE ADJUSTMENT | F61: -1 | G61: CALC | H61: 1 | I61: -1
B62: Other Items | C62: 49 | D62: 7728 | E62: MINOR CHANGE | F62: -1 | G62: CALC | H62: 1 | I62: =H62*F62 -> -1
B63: Other Items | C63: 50 | D63: 7732 | E63: AGGREGATE COMPLIANCE PRICE ADJUSTMENT | F63: -1 | G63: CALC | H63: 1 | I63: =H63*F63 -> -1
B64: Total | I64: =SUBTOTAL(109,Table19[Total]) -> 2638858.85

Sheet LS Example Worksheet
A2: NOTE: A lump sum item can be used to pay for temporary traffic control when an assessment of the cost risk associated with that approach indicates that the traffic control operation is sufficiently well defined. See Design Manual chapter 1010.10(3) and LSTC Risk Index tool to determine if lump sum traffic control is appropriate for your project.
B3: PROJECT SPECIFIC FACTORS • 30 Working Days • Moderate Traffic density • Some one-direction traffic switching | E3: Bid Tabs Pro Bid History Data Analysis | H3: Use this Adjusted Unit Price for estimate considering proj. specific factors ↓↓↓
B4: ITEM | C4: STD. ITEM NO. | D4: UNITS | E4: High Price | F4: Low Price | G4: Weighted AVG Price | H4: UNIT PRICE | I4: QUANTITY | J4: AMOUNT | L4: Applied factors for bid history price adjustment regarding
B5: LUMP SUM TRAFFIC CONTROL | C5: 9671 | L5: • Location
B6: TRANSPORTABLE ATTENUATOR | C6: 7447 | D6: HOUR | E6: 17000 | F6: 9300 | G6: 12400 | H6: 12500 | I6: 1 | J6: =H6*I6 -> 12500 | L6: • Fuel price escalation
B7: OPERATION OF TRUCK MOUNTED IMPACT ATTENUATOR | C7: 7449 | D7: HOUR | E7: 85 | F7: 72 | G7: 80 | H7: 82 | I7: 200 | J7: 16400 | L7: • Labor availability
B8: FLAGGERS | C8: 6980 | D8: HOUR | E8: 90 | F8: 60 | G8: 78 | H8: 75 | I8: 500 | J8: 37500 | L8: • Age of bid data available
B9: OTHER TRAFFIC CONTROL LABOR | C9: 6992 | D9: HOUR | E9: 90 | F9: 60 | G9: 78 | H9: 75 | I9: 400 | J9: 30000
B10: TRAFFIC CONTROL SUPERVISOR | C10: 6972 | D10: HOUR | E10: 105 | F10: 80 | G10: 95 | H10: 103 | I10: 240 | J10: 24720
B11: CONSTRUCTION SIGNS CLASS A | C11: 6982 | D11: S.F. | E11: 30 | F11: 16 | G11: 19 | H11: 20 | I11: 672 | J11: 13440
B12: TEMPORARY TRANSVERSE RUMBLE STRIPS | C12: NS | D12: L.F. | E12: See note | F12: See note | G12: See note | H12: 30 | I12: 48 | J12: 1440 | L12: NOTE: Contacted industry for cost + labor, equipment & materials
B13: TEMPORARY CONCRETE BARRIER | C13: 6781 | D13: L.F. | E13: 22 | F13: 10 | G13: 16 | H13: 85 | I13: 1500 | J13: 127500 | L13: overhead and profit figures from RSMeans
B14: SEQUENTIAL ARROW SIGN | C14: 6956 | D14: Hour | E14: 7 | F14: 2 | G14: 4.5 | H14: 5.5 | I14: 240 | J14: 1320
D17: Total for estimate → | J17: =SUM(J6:J14) -> 264820

Sheet EXAMPLE Paving Estimate
A1: Section | B1: Item Number | C1: Standard Item Number | D1: Item Description | E1: QUANTITY | F1: Unit of Measure | G1: Unit Price | H1: Total | I1: Typical Paving Estimate
A2: Preparation | B2: 1 | C2: 0001 | D2: MOBILIZATION | E2: 182900 | F2: L.S. | G2: 1 | H2: 182900
A3: Preparation | B3: 2 | C3: 0185 | D3: REMOVING GUIDE POST | E3: 220 | F3: EACH | G3: 5 | H3: 1100
A4: Grading | B4: 3 | C4: 0332 | D4: PAVEMENT REPAIR EXCAVATION INCL. HAUL | E4: 270 | F4: S.Y. | G4: 10 | H4: 2700
A5: Surfacing | B5: 4 | C5: 5020 | D5: BALLAST | E5: 270 | F5: TON | G5: 30 | H5: 8100
A6: Surfacing | B6: 5 | C6: 5100 | D6: CRUSHED SURFACING BASE COURSE | E6: 70 | F6: TON | G6: 25 | H6: 1750
A7: Hot Mix Asphalt | B7: 6 | C7: 5701 | D7: CRACK SEALING-CM | E7: 10.3 | F7: CM | G7: 1200 | H7: 12360
A8: Hot Mix Asphalt | B8: 7 | C8: 5711 | D8: PLANING BITUMINOUS PAVEMENT | E8: 153400 | F8: S.Y. | G8: 2 | H8: 306800
A9: Hot Mix Asphalt | B9: 8 | C9: 5738 | D9: HMA FOR PAVEMENT REPAIR CL. 3/8 IN. PG 64H-28 | E9: 170 | F9: TON | G9: 140 | H9: 23800
A10: Hot Mix Asphalt | B10: 9 | C10: 5766 | D10: HMA CL. 3/8 IN. PG 64H-28 | E10: 16680 | F10: TON | G10: 82 | H10: 1367760
A11: Hot Mix Asphalt | B11: 10 | C11: 5830 | D11: JOB MIX COMPLIANCE PRICE ADJUSTMENT | E11: 41100 | F11: CALC | G11: 1 | H11: 41100
A12: Hot Mix Asphalt | B12: 11 | C12: 5835 | D12: COMPACTION PRICE ADJUSTMENT | E12: 68400 | F12: CALC | G12: 1 | H12: 68400
A13: Hot Mix Asphalt | B13: 12 | C13: 5837 | D13: ASPHALT COST PRICE ADJUSTMENT | E13: 27700 | F13: CALC | G13: 1 | H13: 27700
A14: Hot Mix Asphalt | B14: 13 | C14: NS | D14: JOINT ADHESIVE FOR BITUMINOUS PAVEMENT | E14: 53300 | F14: L.F. | G14: 1 | H14: 53300
A15: Hot Mix Asphalt | B15: 14 | C15: 6516 | D15: CYCLIC DENSITY PRICE ADJUSTMENT | E15: -1 | F15: CALC | G15: 1 | H15: -1
A16: Hot Mix Asphalt | B16: 15 | C16: 6518 | D16: SMOOTHNESS COMPLIANCE ADJUSTMENT | E16: 124000 | F16: CALC | G16: 1 | H16: 124000
A17: Erosion Control | B17: 16 | C17: 6403 | D17: ESC LEAD | E17: 8 | F17: DAY | G17: 75 | H17: 600
A18: Erosion Control | B18: 17 | C18: 6471 | D18: INLET PROTECTION | E18: 36 | F18: EACH | G18: 90 | H18: 3240
A19: Erosion Control | B19: 18 | C19: 6479 | D19: WATTLE | E19: 475 | F19: L.F. | G19: 5 | H19: 2375
A20: Erosion Control | B20: 19 | C20: 6490 | D20: EROSION/WATER POLLUTION CONTROL | E20: 2000 | F20: EST. | G20: 1 | H20: 2000
A21: Traffic | B21: 20 | C21: 6727 | D21: EXTRUDED CURB | E21: 395 | F21: L.F. | G21: 15 | H21: 5925
A22: Traffic | B22: 21 | C22: NS | D22: REMOVING AND RESETTING GUARDRAIL BLOCKS | E22: 113 | F22: L.F. | G22: 10 | H22: 1130
A23: Traffic | B23: 22 | C23: 6755 | D23: BEAM GUARDRAIL BLOCK | E23: 15 | F23: EACH | G23: 30 | H23: 450
A24: Traffic | B24: 23 | C24: 6780 | D24: REMOVING AND RESETTING BEAM GUARDRAIL | E24: 563 | F24: L.F. | G24: 20 | H24: =G24*E24 -> 11260
A25: Traffic | B25: 24 | C25: 7450 | D25: REPAIR TRANSPORTABLE ATTENUATOR | E25: 4000 | F25: EST. | G25: 1 | H25: 4000
A26: Traffic | B26: 25 | C26: 6832 | D26: FLEXIBLE GUIDE POST | E26: 368 | F26: EACH | G26: 30 | H26: 11040
A27: Traffic | B27: 26 | C27: 6806 | D27: PAINT LINE | E27: 162891 | F27: L.F. | G27: 0.15 | H27: 24433.65
A28: Traffic | B28: 27 | C28: 6859 | D28: PLASTIC STOP LINE | E28: 29 | F28: L.F. | G28: 15 | H28: 435
A29: Traffic | B29: 28 | C29: 6833 | D29: PLASTIC TRAFFIC ARROW | E29: 2 | F29: EACH | G29: 150 | H29: 300
A30: Traffic | B30: 29 | C30: 6893 | D30: CENTERLINE RUMBLE STRIP | E30: 10.4 | F30: MI. | G30: 1000 | H30: 10400
A31: Traffic | B31: 30 | C31: 6895 | D31: TEMPORARY PAVEMENT MARKING-SHORT DURATION | E31: 163000 | F31: L.F. | G31: 0.15 | H31: 24450
A32: Traffic | B32: 31 | C32: 6971 | D32: PROJECT TEMPORARY TRAFFIC CONTROL | E32: 265000 | F32: L.S. | G32: 1 | H32: 265000
A33: Traffic | B33: 41 | C33: 6982 | D33: CONSTRUCTION SIGNS CLASS A | E33: 964 | F33: S.F. | G33: 13 | H33: 12532
A34: Traffic | B34: 42 | C34: 6750 | D34: BEAM GUARDRAIL POST | E34: 10 | F34: EACH | G34: 135 | H34: 1350
A35: Traffic | B35: 43 | C35: 6817 | D35: PAINTED WIDE LINE | E35: 454 | F35: L.F. | G35: 0.3 | H35: 136.2
A36: Other Items | B36: 44 | C36: 7038 | D36: ROADWAY SURVEYING | E36: 25000 | F36: L.S. | G36: 1 | H36: 25000
A37: Other Items | B37: 45 | C37: 3100 | D37: ADJUST CATCH BASIN | E37: 1 | F37: EACH | G37: 450 | H37: 450
A38: Other Items | B38: 46 | C38: 7480 | D38: ROADSIDE CLEANUP | E38: 5000 | F38: EST. | G38: 1 | H38: 5000
A39: Other Items | B39: 47 | C39: 7490 | D39: TRIMMING AND CLEANUP | E39: 2500 | F39: L.S. | G39: 1 | H39: 2500
A40: Other Items | B40: 48 | C40: 7725 | D40: REIMBURSEMENT FOR THIRD PARTY DAMAGE | E40: 5 | F40: EST. | G40: 1 | H40: 5
A41: Other Items | B41: 49 | C41: 7728 | D41: MINOR CHANGE | E41: -1 | F41: CALC | G41: 1 | H41: -1
A42: Other Items | B42: 50 | C42: 7732 | D42: AGGREGATE COMPLIANCE PRICE ADJUSTMENT | E42: -1 | F42: CALC | G42: 1 | H42: -1
A43: Other Items | B43: 51 | C43: 7736 | D43: SPCC PLAN | E43: 1000 | F43: L.S. | G43: 1 | H43: 1000
A44: Other Items | B44: 52 | C44: 7530 | D44: CONSTRUCTION GEOTEXTILE FOR SEPARATION | E44: 520 | F44: S.Y. | G44: 4 | H44: 2080
A45: Total | H45: =SUBTOTAL(109,Table1[Total]) -> 2638858.85

Sheet LSTC Risk Assessment
B1: Washington State Department of Transportation
B2: Lump Sum Traffic Control Risk Assessment
B4: Project Title:
B5: CN Cost Est:
B7: SR | D7: Begin MP | F7: End MP | H7: Length: | I7: =G7-E7 -> 0 | J7: miles
B8: SR | D8: Begin MP | F8: End MP | H8: Length: | I8: =G8-E8 -> 0 | J8: miles
B9: SR | D9: Begin MP | F9: End MP | H9: Length: | I9: 0 | J9: miles
B11: Brief Project Description:
B12: Please provide a brief description of this project
B18: Considerations | J18: Risk Rating for this item | K18: Explanation For Rating and Mitigation Measures Implemented | M18: Select from this List for topic Scoring Information
B19: 1 | C19: Contract Duration and Schedule | M19: ↑↑ Click Above to select from the drop-down list for information about scoring each of the items to be considered ↑↑ k
B20: 1a | C20: Contract Duration | J20: Rate 0 to 10 | K20: Provide an explanation for rating and any mitigation measures | M20: Scoring Notes
B21: 1b | C21: Contract Schedule | J21: Rate 0 to 10 | K21: Provide an explanation for rating and any mitigation measures | M21: =VLOOKUP('LSTC Risk Assessment'!M18,DATA!B3:E20,2, FALSE) -> Scoring notes
B22: 2 | C22: Construction stages
B23: 2a | C23: Number of construction stages | J23: Rate 0 to 10 | K23: Provide an explanation for rating and any mitigation measures
B24: 3 | C24: Traffic Control Needs
B25: 3a | C25: Intersection Closures | J25: Rate 0 to 20 | K25: Provide an explanation for rating and any mitigation measures
B26: 3b | C26: Interchange Closures | J26: Rate 0 to 20 | K26: Provide an explanation for rating and any mitigation measures | M26: Items for Consideration
B27: 3c | C27: Rolling Slowdowns | J27: Rate 0 to 10 | K27: Provide an explanation for rating and any mitigation measures | M27: =VLOOKUP('LSTC Risk Assessment'!M18,DATA!B3:E20,3, FALSE) -> Items For Consideration
B28: 3d | C28: Mainline Closures | J28: Rate 0 to 10 | K28: Provide an explanation for rating and any mitigation measures
B29: 3e | C29: Other High Impact Closures | J29: Rate 0 to 10 | K29: Provide an explanation for rating and any mitigation measures
B30: 3f | C30: Closure Approval By Others | J30: Rate 0 to 10 | K30: Provide an explanation for rating and any mitigation measures
B31: 3g | C31: Transit Impacts | J31: Rate 0 to 5 | K31: Provide an explanation for rating and any mitigation measures
B32: 3h | C32: Pedestrian Route Closures | J32: Rate 0 to 10 | K32: Provide an explanation for rating and any mitigation measures | M32: Possible Mitigation
B33: 3i | C33: Bicycle Route Closures | J33: Rate 0 to 5 | K33: Provide an explanation for rating and any mitigation measures | M33: =VLOOKUP('LSTC Risk Assessment'!M18,DATA!B3:E20,4, FALSE) -> Possible Mitigation
B34: 3j | C34: Traffic Control Provided for Others | J34: Rate 0 to 10 | K34: Provide an explanation for rating and any mitigation measures
B35: 3k | C35: Multiple Shifts (day & night) | J35: Rate 0 to 10 | K35: Provide an explanation for rating and any mitigation measures
B36: 3l | C36: Roadway Detours | J36: Rate 0 to 20 | K36: Provide an explanation for rating and any mitigation measures
B37: 4 | C37: Traffic Control Plans
B38: 4a | C38: Is the contract missing traffic control plans? | J38: Rate 0 to 20 | K38: Provide an explanation for rating and any mitigation measures
B39: 4b | C39: Does the contract have significant number of TC plan | J39: Rate 0 to 10 | K39: Provide an explanation for rating and any mitigation measures
I40: Project Risk Level → | J40: =IFERROR(SUM(J20:J39),"0") -> 0 | K40: =IF(J40>=105,"Not a good candidate for LSTC",IF(J40<=35,"This is a Good Candidate for LSTC",IF(AND(J40>35,J40<=70),"Consider LSTC with minor mitigation",IF(AND(J40>70,J40<105),"Use bid items or LSTC with mitigation")))) -> This is a Good Candidate for LSTC

Sheet CCI Inflation
B1: Construction Cost Index Calculator
B8: INDEX CALCULATOR
B9: Item Unit Cost | C9: 10 | E9: ← ENTER - Unit cost to be inflated to current dollars
B11: Current Index number | C11: 115.5 | E11: ← ENTER - CCI index number at the time of this estimate
B12: Index number for unit price used | C12: 110 | E12: ← ENTER - CCI index number at the time of the unit price being utilized
B14: Item Cost multiplier | C14: =C11/C12 -> 1.05 | E14: ← Your old cost data will be inflated by this multiplier to bring it to current year dollars
B16: = Todays $ Item Unit Cost | C16: =C9*C14 -> 10.5 | E16: ← This is your item unit cost in todays dollars

Sheet Production Rates
A1: Source: Federal Lands
A2: PRODUCTION RATES - ENGLISH
A3: Activity | B3: Unit | C3: Typical Production Rate | F3: Notes for Production Rates
C4: Low | D4: Average | E4: High
A5: MOBILIZATION
A6: Projects less than $1 million | B6: Day | D6: 3
A7: Major bridge project | B7: Day | C7: 14 | D7: 26 | E7: 28
A8: Paving only project | B8: Day | C8: 2 | D8: 3 | E8: 5
A9: Grading only / Minor Earthwork | B9: Day | C9: 4 | D9: 10 | E9: 20
A10: Grading and paving / Major Earthwork | B10: Day | C10: 7 | D10: 12 | E10: 20
A11: Grading, paving and bridge project | B11: Day | C11: 12 | D11: 17 | E11: 22
A12: SURVEY AND STAKING
A13: Verify FHWA control | B13: Day | C13: 1 | D13: 2 | E13: 3
A14: Stake centerline | B14: LF | C14: 1600 | D14: 3200 | E14: 4800 | F14: Use lower rates for smaller projects
A15: Slope, Reference and Clearing Stakes | B15: LF | C15: 600 | D15: 800 | E15: 1600 | F15: Use higher rates for flat, lightly/non-vegetated terrain
A16: Grade finishing stakes | B16: LF | C16: 800 | D16: 1600 | E16: 2400 | F16: Use lower rates for smaller projects; rates represent one course of aggregate (ie: red tops, blue tops, etc); include time for survey of each aggregate course; use higher rates where Machine Guidance is anticipated (ie: large linear projects)
A17: Stake drainage structure/device | B17: EA | C17: 4 | D17: 8 | E17: 16 | F17: Rate will depend on size and type of structure/device, project topography, and proximity of each structure to each other (ie: will the surveyor have to relocate base station multiple times?)
A18: EROSION CONTROL
A19: Silt fence / Wattles | B19: LF | C19: 200 | D19: 1000 | E19: 1700 | F19: Use lower rates for excessive boulders and heavy trees, steep terrain.
A20: Matting | B20: SY | C20: 600 | D20: 1800 | E20: 2800 | F20: Use lower rates for isolated small areas, oddly shaped, etc.
A21: CLEARING & GRUBBING
A22: Projects with a lot of large trees, rugged terrain, or heavy brush | B22: AC | C22: 0.3 | D22: 1.3 | E22: 2.7
A23: Projects with fewer large trees, flatter terrain, or less heavy brush | B23: AC | C23: 1 | D23: 3 | E23: 6
A24: EARTHWORK
A25: Strip and stockpile topsoil | B25: CY | C25: 300 | D25: 700 | E25: 1200 | F25: Use lower rates for excessive boulders and steep terrain, smaller projects, and long haul to stockpile location.
A26: Subexcavation (no shoring or dewatering needed) | F26: Use 14 days when cofferdam required, minimum.
A27: 1' to 5' deep | B27: CY | C27: 125 | D27: 325 | E27: 500 | F27: Rates from RS Means.
A28: 5' to 10' deep | B28: CY | C28: 225 | D28: 600 | E28: 1000 | F28: Rates from RS Means.
A29: Roadway Excavation
A30: Projects with less than 50,000 CY of earthwork or haul distance of 5 miles or more | B30: CY | C30: 400 | D30: 1600 | E30: 2500 | F30: Note 2. Also consider number of sites (ie: will multiple sites be in production at once?)
A31: Projects with more than 50,000 CY of earthwork | B31: CY | C31: 1200 | D31: 2800 | E31: 4500 | F31: Note 2. Also consider number of sites (ie: will multiple sites be in production at once?)
A32: Rock excavation by hammer | B32: CY | C32: 80 | D32: 240 | E32: 640 | F32: Rates from RS Means. Use on jobs with minor rock cuts or where blasting is not permitted
A33: Rock excavated by ripping | B33: CY | C33: 300 | D33: 900 | E33: 1500 | F33: Use lower rates for harder, yet rippable, rock. Use higher rates for softer rock.
A34: Rock excavated by blasting | B34: CY | C34: 150 | D34: 250 | E34: 400 | F34: Use lower rates for difficult access and harder rock; these prod. Rates include pioneering, drilling, blasting, loading and haul away activities but do not include scaling
A35: Structure Excavation (most soils) | B35: CY | C35: 60 | D35: 120 | E35: 180 | F35: Rates from RS Means
A36: Structure Excavation (sand/gravel) | B36: CY | C36: 100 | D36: 160 | E36: 220 | F36: Rates from RS Means
A37: Embankment Construction | B37: CY | C37: 250 | D37: 1100 | E37: 2600 | F37: Note 2
A38: REMOVALS
A39: PCC pavement | B39: SY | C39: 500 | D39: 1000 | E39: 2500 | F39: Reduce rates for lower quantity and increased pavement depth.
A40: Asphalt pavement | B40: SY | C40: 500 | D40: 3500 | E40: 8000 | F40: Reduce rates for lower quantity and increased pavement depth; rates are based on milled/pulverized removal rates
A41: Roadway Obliteration | B41: SY | C41: 80 | D41: 400 | E41: 1500 | F41: Rates will vary depending on how much work is required to return it to the original condition. Large areas with simple horizontal and vertical geometry will have a production rate up to 1500 SY/day. Areas that require additional fill or projects with multiple small obliteration sites will have lower production rates.
A42: Concrete curb & gutter | B42: LF | C42: 200 | D42: 360 | E42: 1100 | F42: Rate will vary based on quantity, dimensions, and condition of curb/gutter to be removed
A43: Sidewalk | B43: SY | C43: 100 | D43: 600 | E43: 1200 | F43: site conditions must be considered: rate will increase significantly if material can be removed with a equipment operated hammer vs. labor operated hammer
A44: Guardrail | B44: LF | C44: 310 | D44: 600 | E44: 870
A45: Pipe <36" diameter | B45: LF | C45: 120 | D45: 240 | E45: 360
A46: Pipe >36" diameter | B46: LF | C46: 95 | D46: 150 | E46: 270
A47: Pavement Cutting (AC) | B47: LF | C47: 800 | D47: 1600 | E47: 2400 | F47: As depth increases, reduce rates.
A48: Pavement Cutting (PCC) | B48: LF | C48: 800 | D48: 1600 | E48: 2400 | F48: As depth increases, reduce rates.
A49: Structures, minor | B49: DAY | C49: 5 | D49: 10 | E49: 20
A50: Structures, major | B50: DAY | C50: 1 | D50: 3 | E50: 5
A51: DRAINAGE
A52: Box culvert, Cast-in-place | B52: LF | C52: 2 | D52: 10 | E52: 16 | F52: Prod. Rates include forming, tieing, casting and stripping but do not include excavation or backfill. Site specific conditions (box size, traffic requirements, existing structure removal, foundation, dewatering, etc…) should also be considered.
A53: Box culvert, Precast | B53: LF | C53: 40 | D53: 70 | E53: 140 | F53: Prod. Rates include placement only. Excavation, and backfill/compaction, off-site production times and transportation should be considered as well. Site specific conditions (box size, traffic requirements, existing structure removal, foundation, dewatering, etc…) should also be considered.
A54: Inlets and manholes, new or adjust | B54: EA | C54: 1 | D54: 2 | E54: 3 | F54: As Total in a Line increases, increase production. Pre cast, use higher rate.
A55: Pipe culvert, 24" and smaller | B55: LF | C55: 40 | D55: 80 | E55: 120 | F55: Redo rates for sliver fills, deep fills, rocky soil, smaller projects. Consider traffic volume. Under average conditions, assume 1 installation per day per crew.
A56: Pipe culvert, 30" to 42" | B56: LF | C56: 30 | D56: 70 | E56: 100 | F56: Reduce rates for sliver fills, deep fills, rocky soil, smaller projects. Consider traffic volume. Under average conditions, assume 1 installation per day per crew.
A57: Pipe culvert, 48" and larger | B57: LF | C57: 20 | D57: 55 | E57: 80 | F57: Reduce rates for sliver fills, deep fills, rocky soil, smaller projects. Consider traffic volume. Under average conditions, assume 1 installation per day per crew.
A58: Riprap, aprons | B58: CY | C58: 20 | D58: 40 | E58: 60 | F58: Reduce rates for rocky soil, steep sliver fills, smaller projects.
A59: Riprap lined ditches | B59: LF | C59: 100 | D59: 200 | E59: 300 | F59: Reduce rates for rocky soil, steep sliver fills, smaller projects.
A60: Underdrain | B60: LF | C60: 200 | D60: 400 | E60: 800 | F60: Reduce rates for rocky soil, smaller projects, and large trenches dimensions.
A61: Wingwall/Headwall | B61: SF | C61: 14 | D61: 35 | E61: 90 | F61: Unit is for exposed face sqft; rates are for minor drainage structures; as wall area increases, increase production rates; add 7 days for cure and backfill.
A62: SUBGRADE AND BASE
A63: Subgrade stabilization, lime | B63: SY | C63: 900 | D63: 4000 | E63: 6000 | F63: Rates includes scarification and compaction efforts; As application area increases, increase production rate.
A64: Subgrade stabilization, cement | B64: SY | C64: 900 | D64: 4000 | E64: 5000 | F64: Rates includes scarification and compaction efforts; As application area increases, increase production rate.
A65: Subgrade stabilization, asphalt | B65: SY | C65: 900 | D65: 3000 | F65: Limited data available; Rates includes scarification and compaction efforts
A66: Recycling, Cold In Place | B66: SY | D66: 12000 | E66: 15000 | F66: Limited data available
A67: Asphalt Pavement Milling | B67: SY | C67: 2000 | D67: 3000 | E67: 6500
A68: Pulverizing | B68: SY | C68: 2000 | D68: 4000 | E68: 12500 | F68: reduce rates if pulverizing deeper than 3"
A69: Aggregate Base | B69: TONS | C69: 400 | D69: 1000 | E69: 1800 | F69: rates include lay down but do not include final grading operations; consider project specific conditions; these activities may be combined with smaller quantities
A70: Aggregate Shoulder | B70: CY | C70: 100 | D70: 350 | E70: 500
A71: Cement Treated Base | B71: SY | C71: 1940 | D71: 4050 | E71: 5920 | F71: As quantity increases, increase production rate. Allow for sequencing of one lane at a time and curing.
A72: Finishing Subgrade/Base Course/Surface Course | B72: LF | C72: 500 | D72: 1000 | E72: 2000 | F72: Rates are for two lanes; rates do not include survey time; rates represent one course (ie: red tops, blue tops, etc); decrease rates for rocky subgrade; increase rates if it is anticipated that AMG will be used (larger projects);
A73: PAVING
A74: Asphalt paving (HACP) | B74: TONS | C74: 550 | D74: 1000 | E74: 1700 | F74: Note 2
A75: Asphalt surface treatment (fog seal) | B75: TONS | C75: 3 | D75: 20 | E75: 58 | F75: Project specific restrictions should be closely considered; increase rates as quantity increases, and where traffic passage can be limited/eliminated
A76: Prime coat | B76: SY | C76: 3900 | D76: 10000 | E76: 20000 | F76: Production rate will typically be controlled by Asphalt paving production rate
A77: Tack coat | B77: TONS | C77: 1 | D77: 3 | E77: 8 | F77: Production rate will typically be controlled by Asphalt paving production rate
A78: Paved Ditch | B78: SY | C78: 250 | D78: 500 | E78: 750 | F78: Rates dependent upon difficulty of paving, based on accessibility, ditch dimensions and continuous ditch length. Longer ditches will generally have higher production rates.
A79: Portland Cement Concrete Pavement (slip forming) | B79: SY | C79: 460 | D79: 2500 | E79: 5000 | F79: Slip forming, increase production rates with increase in paving length; production rate varies significantly based on pavement depth.
A80: Portland Cement Concrete Pavement (conventional forming) | B80: SY | C80: 20 | D80: 300 | E80: 600 | F80: Conventional forming; sharp curves and angles decrease production; note: slip form concrete paving will have significantly higher production rates; use RS Means if slip form paving is anticipated (ie: for vary large concrete paving projects).
A81: Chip Seal | B81: SY | C81: 2500 | D81: 13500 | E81: 21000 | F81: Add one day to complete brooming
A82: Approach roads, minor HACP | B82: TONS | C82: 80 | D82: 250 | E82: 350
A83: Full Depth Patch | B83: SY | C83: 60 | D83: 160 | E83: 400 | F83: Project specific conditions should be considered; Larger sites will yield higher rates; smaller multiple sites will yield lower rates
A84: CURBS, GUTTERS, AND SIDEWALK
A85: Curb & Gutter, Concrete | B85: LF | C85: 160 | D85: 480 | E85: 900 | F85: Reduce rates for hand mixed/placed
A86: Curb, Concrete | B86: LF | C86: 160 | D86: 480 | E86: 900 | F86: Reduce rates for hand mixed/placed.
A87: Curb, Bituminous | B87: LF | C87: 650 | D87: 1200 | E87: 1850
A88: Curb, Stone | B88: LF | C88: 50 | D88: 100 | E88: 150 | F88: Limited data available
A89: Sidewalks, Concrete | B89: SY | C89: 80 | D89: 160 | E89: 280
A90: GUARDRAIL AND GUARDWALL
A91: W-beam or box beam guardrail | B91: LF | C91: 250 | D91: 500 | E91: 1000 | F91: Use lower rates for stiff/rocky soils.
A92: Steel Backed Timber guardrail | B92: LF | D92: 600 | F92: Limited data available
A93: Cable guardrail | B93: LF | D93: 800 | F93: Limited data available
A94: BRIDGES AND STRUCTURES
A95: Cofferdams | B95: SY | C95: 100 | D95: 200 | E95: 300 | F95: Limited Data available; increase rate for higher quantities and sandy soil; decrease rates for rocky, or cobbly soil
A96: Column/Pier Cap/Abutment Construction | B96: CY | C96: 2 | D96: 4 | E96: 8 | F96: Rates include forming, tieing, pouring; Add cure time and time for stripping forms; Recommend breaking down into individual work activities (ie: survey, form, tie rebar, pour concrete, cure, strip forms);
A97: Deck Construction | B97: SF | C97: 100 | D97: 250 | E97: 400 | F97: Rates include forming, tieing, pouring; Add cure time and time for stripping forms; Recommend breaking down into individual work activities (ie: survey, form, tie rebar, pour concrete, cure, strip forms); Reduce production rate for decks with complicated geometry. Add 14 days for curing for all rates.
A98: Drilled Shafts | B98: LF | C98: 10 | D98: 112 | E98: 280 | F98: Note 1; Increase rate for shaft clusters, good accessibility and drilling space; soil type is primary controlling factor; reduce rate slightly for cobbly soil, bore diameter and lower quantities; reduce rate significantly for harder rock
A99: Membrane Waterproofing | B99: SF | D99: 1500 | F99: Limited data available
A100: Piles, Driving Concrete | B100: LF | C100: 100 | D100: 250 | E100: 500 | F100: Allow time for relaxation/testing/redriving; reduce rate for larger diameter/sectional area piles; consult with geotech. For site specific considerations
A101: Piles, Driving Steel | B101: LF | C101: 100 | D101: 250 | E101: 500 | F101: Allow time for relaxation/testing/redriving; reduce rate for larger diameter/sectional area piles; consult with geotech. For site specific considerations
A102: Prestressed girders (fabrication) | B102: DAYS | C102: 10 | D102: 13 | E102: 20 | F102: Includes tieing, prestressing, casting, curing and transportation for one set of girders (ie:for one casting of girders); NOTE: assume 3 girders (typical) per set/casting; tieing/prestressing and casting times (approximately 3-4 days) will overlap cure times for each previous set
A103: Prestressed girders (setting) | B103: EA | C103: 3 | D103: 6 | E103: 12 | F103: Rates are for placement, not fabrication. Use lower rate for poor access, and longer beams. Add fabrication, curing and transportation time (below)
A104: Reinforcement (Substructure) | B104: Lbs | C104: 3000 | D104: 4000 | E104: 5000 | F104: Rates include tieing rebar only
A105: Reinforcement (Superstructure) | B105: Lbs | C105: 3000 | D105: 4400 | E105: 5800 | F105: Typical = 3 days/span; rates include tieing rebar only
A106: Structural Concrete | B106: CY | C106: 20 | D106: 110 | E106: 200 | F106: Production rate will be primarily controlled by size of pour; increase rates for larger structural sections/quantities; reduce rates for poor accessibility to pour site
A107: Structural steel beams (setting) | B107: EA | C107: 3 | D107: 6 | E107: 12
A108: Structure Steel, Erecting | B108: Lbs | D108: 25000 | F108: Limited data available
A109: Sidewalks and parapets | B109: DAYS | D109: 5/span | F109: Limited data available; recommend conducting project-specific cost based UPA
A110: Wall, MSE | B110: SF | C110: 40 | D110: 150 | E110: 220 | F110: Limited data available. Rates include excavation and backfill. Recommend site/project-specific requirements are considered. Increase rate as quantity increases.
A111: Wall, gabion | B111: SF | C111: 40 | D111: 300 | E111: 600 | F111: Limited data available; rates do not include excavation
A112: Wall, Stone masonry | B112: SF | C112: 35 | D112: 50 | E112: 100 | F112: Limited data available; rates include excavation and are based on exposed face area
A113: Retaining Wall, Reinforced Concrete | B113: SF | C113: 10 | D113: 22 | E113: 60 | F113: Limited data available; reduce rates for form liner or stone masonry facing
A114: RIPRAP, ROCKERIES, ROCK EMBANKMENTS
A115: Class 2 and smaller | B115: CY | C115: 10 | D115: 80 | E115: 200 | F115: Site specific requirements should be closely considered. Reduce rates for multiple small sites, and large amounts of excavation; Increase rates are for larger qtys
A116: Class 3 & 4 | B116: CY | C116: 20 | D116: 80 | E116: 150 | F116: Site specific requirements should be closely considered. Reduce rates for multiple small sites, and large amounts of excavation; Increase rates are for larger qtys
A117: Class 5 & 6 | B117: CY | C117: 40 | D117: 100 | E117: 150 | F117: Site specific requirements should be closely considered. Reduce rates for multiple small sites, and large amounts of excavation; Increase rates are for larger qtys
A118: Class 7 and larger | B118: CY | C118: 20 | D118: 100 | E118: 200 | F118: Site specific requirements should be closely considered. Reduce rates for multiple small sites, and large amounts of excavation; Increase rates are for larger qtys
A119: Riprap Grouting | B119: CY | C119: 100 | D119: 150 | E119: 200 | F119: Rates are for grouting of already placed riprap, apply to quantity of grout to be placed, and do not include placement of riprap; Site specific conditions should be closely considered, including concrete/grout haul distance, assumed grout coverage, riprap size, site access, etc…
A120: Special Rock Embankment | B120: CY | C120: 75 | D120: 180 | E120: 280 | F120: Site specific requirements should be closely considered. Reduce rates for multiple small sites, and large amounts of excavation; Increase rates are for larger qtys
A121: Rock Buttress | B121: CY | C121: 25 | D121: 55 | E121: 92 | F121: Site specific requirements should be closely considered. Reduce rates for multiple small sites, and large amounts of excavation; Increase rates are for larger qtys
A122: Rockery | B122: SY | C122: 4 | D122: 20 | E122: 40 | F122: Site specific requirements should be closely considered. Reduce rates for multiple small sites, and large amounts of excavation; Increase rates are for larger qtys
A123: SIGNING AND STRIPING
A124: Pavement Marking, Paint | B124: LF | C124: 20000 | D124: 50000 | E124: 85000
A125: Pavement Marking, Thermoplastic | B125: LF | C125: 3100 | D125: 5600 | E125: 10000 | F125: Limited data avail
A126: Pavement Marking, Symbol | B126: EA | C126: 5 | D126: 10 | E126: 18
A127: Delineators | B127: EA | C127: 35 | D127: 50 | E127: 100 | F127: Use lower rates for stiff/rocky soil.
A128: Signs | B128: EA | C128: 10 | D128: 20 | E128: 30 | F128: Use lower rates for stiff/rocky soil.
A129: REVEGETATION
A130: Mulching, Hydraulic Method | B130: AC | C130: 2.5 | D130: 8 | E130: 11
A131: Seeding, Hydraulic Method | B131: AC | C131: 2.5 | D131: 8 | E131: 11
A132: Place conserved topsoil | B132: CY | C132: 200 | D132: 800 | E132: 1200 | F132: Includes shaping/compacting.
A133: MISCELLANEOUS
A134: Concrete barrier, pre-cast | B134: LF | C134: 100 | D134: 200 | E134: 300
A135: Curb ramp, concrete | B135: SY | C135: 12 | D135: 22 | E135: 30 | F135: reduce rate for multiple smaller ramps; increase rate for larger, longer ramps
A136: Ditch checks structures (Riprap) | B136: EA | C136: 4 | D136: 15 | E136: 25 | F136: rates are for riprap ditch check structures
A137: Ditch check structures (Wattles) | B137: EA | C137: 20 | D137: 50 | E137: 100 | F137: rates are for wattle check structures; reduce rates for rocky soil
A138: Final clean up | B138: STA | C138: 10 | D138: 30 | E138: 50 | F138: rates will vary based on project size and scope
A139: Finishing, aggregate base | B139: STA | C139: 10 | D139: 25 | E139: 50 | F139: rates include staking, final grading and QC verification of red tops
A140: Finishing, subgrade | B140: STA | C140: 5 | D140: 12 | E140: 25 | F140: rates include staking, final grading and QC verification of blue tops; reduce rates in rocky subgrade
A141: Geotextiles, stabilization | B141: SY | C141: 500 | D141: 1000 | E141: 2000 | F141: rate will depend on lift dimensions and geotextile frequency; closer geotextile layers will increase production rate
A142: Geotextiles, underdrain | B142: SY | C142: 100 | D142: 140 | E142: 350 | F142: rate will depend on lift dimensions, understrain length and frequency; larger, more frequent sections of underdrain will increase production rate
A143: Sheet piling | B143: SY | C143: 55 | D143: 82 | E143: 110 | F143: limited data available; reduce rate by half if removal is required.
A144: Temp bridge | B144: DAY | C144: 7 | D144: 14 | E144: 21 | F144: Includes erecting and dismantling; rates will vary based on site-specific conditions
A145: Temp detours | B145: DAY | C145: 2 | D145: 5 | E145: 7 | F145: Use lower rates for simpler detours, minor earthwork and surfacing.
A147: Studies find significant correlation between production rates and the following influences:
A148: Activity: | B148: Influence:
A149: Bridge deck | B149: Curved or straight
A150: Drilled Shafts | B150: Total length, clustered shafts, accessibility Note 1 below
A151: Excavation | B151: Work Area Quantity
A152: Embankment | B152: Work Area Quantity, Work Zone Congestion
A153: Lime Treated Subgrade | B153: Work Area Quantity, Length of Work Area
A154: Flexible Base | B154: Work Area Quantity, Length of Work Area
A155: Cement Treated Base | B155: Work Area Quantity, Length of Work Area
A156: Hot Mix Pavement | B156: Work Area Quantity, Course Type (Bottom or Final Mat)
A157: Conc Pavement-Slip Form | B157: Work Area Quantity, Length of Work Area
A158: Conc Pavement-Conventional Forming | B158: Work Area Quantity, Configuration (Curves, angles)
A159: MSE Walls | B159: Size of wall (If a wall has different components, see above rates)
A160: Pre Cast Box Culvert | B160: Length, Soil Type, Clay Content of Soil
A161: Cast in place Box Culvert | B161: Length
A162: RCP | B162: Length, Orientation to Road
A163: Inlets and Manholes | B163: Quantity in a line, CIP vs Pre Cast
A164: Wingwall/Headwall | B164: Wall Surface Area
A165: Note 1 | B165: No difference was found between cased and uncased shafts. Clusters = areas where multiple shafts can be installed with no major relocation of the drill rig. Locations with good accessibility would be w/in 30' of a current operational road; locations with good room for drill rig and other equipment to maneuver would be over 2500 SQFT per hole
A169: Note 2 | B169: Base Rate Adjustment Factors
B171: Factors | C171: Adjustment for Noted Conditions
B172: Location | D172: Rural = 1.0 Small City = 0.85 Big city = .75
B173: Traffic conditions | D173: Light = 1.0 Moderate = .88 High = .70
A174: Complexity is technical difficulty or unusual | B174: Complexity | D174: Low = 1.0 Medium = .85 High = .70
A175: project conditions | B175: Soil conditions | D175: Good = 1.0 Fair = .85 Poor = .65
B176: Quantity of work | D176: Large = 1.0 Medium = .88 Small = .75
B177: DO NOT USE MORE THAN 2 FACTORS FOR AN ITEM OF WORK

Sheet DATA (hidden)
A2: Scoring Info for LSCT Risk Assessment Sheet
B3: Select from this List for topic Scoring Information | C3: Scoring notes | D3: Items For Consideration | E3: Possible Mitigation
A4: 1a | B4: 1a - Contract Duration | C4: Rate from 0 to 10 based on the duration of the project. For a project with a single construction season a rating of 0 would be appropriate. For a project that requires multiple construction seasons (4 or more) a rating of 10 may be appropriate. Balance the rating for multiple season project with item 2 (number of construction of stages) | D4: Multiple seasons or long duration projects may lead to cost escalation for materials and labor. Rental equipment cost increases will also need to be accounted for in the lump sum, if that method of payment is used. (***Note: escalation is currently a risk that is assigned to the contractor regardless of the payment method specified. The number of construction seasons may add to the uncertainty for determining TC needs in the future. The variation in quantites provisions also provide an avenue for repricing when quantities fluctuate.) | E4: Provide adequate period to bid (consider longer than typical 4 weeks). Use unit bid items which provide for variation in quantities.
A5: 1b | B5: 1b - Contract Schedule | C5: Does the schedule require coordination of multiple work activities and closures in order to meet the project schedule constraints? Rate from 0 to 10 based on the complexity and coordination of work activates in order to meet the project schedule. | D5: Activity stacking in the construction schedule may necessitate multiple traffic control crews leading to higher overall costs and risk to determine TC needs. Also, activity stacking may also increase the risk that delays may be more difficult to recover. Contractors will price this risk accordingly. | E5: Lengthen the schedule to alleviate the need for trade or work stacking.
A6: 2a | B6: 2a - Number of construction stages | C6: Does the project require multiple construction stages? Rate from 0 to 10 based on the number and complexity of construction stages. Balance the rating with item 1a (contract duration) | D6: The number of construction stages can add to the complexity of TC needs and necessitate multiple traffic control crews for staging changes leading to higher overall cost and risk.
A7: 3a | B7: 3a - Intersection Closures | C7: Does the project require intersection closures? Rate from 0 to 20 with 0 being for no intersection closures. The number and complexity of the closures need to be taken into consideration. | D7: Are there significant number of intersection closures (5 or more) and are they complex, meaning requiring setup of signed detours? Are WSP or Uniformed Law Enforcement for implementation? | E7: Added constraints need to be incorporated into the schedule. Need time to bid and coordinate between prime and subcontractors.
A8: 3b | B8: 3b - Interchange Closures | C8: Does the project require closures that affect multiple interchanges and on and off connections? Rate from 0 to 20 based on the number of interchanges and complexity of interchange impacts. | D8: Planning and scheduling will need to take into account the detours necessary to close interchanges which increases the number of constraints on the project. | E8: Added constraints need to be incorporated into the schedule. Need time to bid and coordinate between prime and subcontractors.
A9: 3c | B9: 3c - Rolling Slowdowns | C9: Does the project require rolling slowdowns (e.g. for sign-bridge installation) Rate from 0 to 10 based on the number/complexity/size of rolling slowdowns. | D9: Rolling slowdowns typically require a large number of vehicles to implement and must be planned and scheduled well in advance increasing the risk of implementation. This can make pre-bid scheduling more difficult and adds to the risk | E9: Allow adequate time in working day calculations and/or eliminate any unnecessary constraints on rolling slowdowns.
A10: 3d | B10: 3d - Mainline Closures | C10: Does the project require mainline closures (e.g. nighttime closures or weekend closures) Rate from 0 to 10 based on the number and complexity of closures needed. | D10: Mainline Closures typically require a large number of vehicles to implement and must be planned and scheduled well in advance increasing the risk of implementation. This can make pre-bid scheduling more difficult and adds to the risk
A11: 3e | B11: 3e - Other High Impact Closures | C11: Does the project include limited or constrained closures, such as ramp closures. Rate from 0 to 10 based on the number and complexity of closures needed excluding mainline closures. | D11: Closures, such as ramps. typically require a large number of vehicles to implement and must be planned and scheduled well in advance increasing the risk of implementation. This can make pre-bid scheduling more difficult and adds to the risk
A12: 3f | B12: 3f - Closure Approval By Others | C12: Does the project require the Contractor to obtain lane closure approvals/detour approvals from Local Agencies, such as Cities or Counties, that are difficult to obtain or do not include allowable hours in the Contract? Rate from 0 to 10 based on the need approvals and information provided in the contract and anticipated difficulty in obtain approvals. | D12: It is difficult to price the unknown and the risk involved. | E12: Approvals should be obtained and include in the contract. If not, provide as much information so the risk is better defined.
A13: 3g | B13: 3g - Transit Impacts | C13: Does the project require closure of transit facilities and/or relocation of bus stops? Rate from 0 to 5 based on the number of impacts. | D13: Another element to price and resource. This needs to be clearly defined in the Contract documents. This can also make pre-bid scheduling more difficult.
A14: 3h | B14: 3h - Pedestrian Route Closures | C14: Does the project require closure of pedestrian facilities and/or pedestrian detours? Rate from 0 to 10 based on the number and complexity. | D14: This can make pre-bid scheduling more difficult if there are constraints on what is allowed. Does the impacts require multiple stages to accommodate/maintain pedestrian routes adding to the complexity?
A15: 3i | B15: 3i - Bicycle Route Closures | C15: Does the project require closure of bicycle lanes or accommodation of temporary bicycle facilities? Rate from 0 to 5 based on the number and complexity of detours. | D15: This can make pre-bid scheduling more difficult if there are constraints on what is allowed.
A16: 3j | B16: 3j - Traffic Control Provided for Others | C16: Does the project require providing traffic control for others (such as utility companies) that is variable or difficult to schedule? Rate from 0 to 10 based on complexity of needs and coordination needed. | D16: This can make pre-bid scheduling more difficult if there are constraints on what is allowed. Does the impacts require multiple stages to accommodate/maintain pedestrian routes adding to the complexity
A17: 3k | B17: 3k - Multiple Shifts (day & night) | C17: Does the schedule require multiple shifts, day and night and the need for multiple traffic control crews. Rate from 0 to 10 based the schedule need for multiple shifts for TC crews.
A18: 3l | B18: 3L - Roadway Detours | C18: Does the project require roadway detours. Rate from 0 to 20 based on the number detour setups and durations. | D18: This can make pre-bid scheduling more difficult if there are constraints on what is allowed. Setup and takedown of detours takes additional time and resources and can exascerbate already limited lane closure windows.
A19: 4a | B19: 4a - Is the contract missing traffic control plans? | C19: Have all the traffic control plans been provided for the project. Rate from 0 to 20 based on anticipated number and complexity of traffic control plans needed but not provided. | D19: Lack of traffic control plans makes determining traffic control needs difficult and can add significant risk the contractor will have to take into consideration. *** If K plans are provided considerations should be given to the complexity of the needed plans and if K plans are appropriate or site specific plans are needed. Have the TC plans been coordinated with all disciplines (e.g. drainage, structure, roadway and so on.)? | E19: Unless there is no option traffic control plans should be provided. If none are provided and it is a complex project Lump sum TC should not be used.
A20: 4b | B20: 4b - Does the contract have significant number of TC plan | C20: Are there a significant number of TC plans in the contract? Rate from 0 to 10 based on the number of plan sheets provided. | D20: Due to the Ad period being short the contractors ability understand a large number of complex TC plans can add significant risk. | E20: It a significant number of complex TC plans are provided consider extending the ad period to provided contractors additional time for review to develop pricing.
